Cogmind - Beta 14 @@@ ROGUE MODE // 2024.08.07 @ 17:34:48 Player: N.W.L Result: Destroyed by YM-AJ3(j) with Overtuned Pulse Rifle Performance ------------- Evolutions (0) 0 Regions Visited (5) 1000 Robots Destroyed (42) 210 Value Destroyed (1274) 1274 Prototype IDs (9) 180 Alien Tech Used (0) 0 Bonus (-111) -111 TOTAL SCORE: 2553 Bonus ------- Follower Combat Kills 275 Registered with UFD 300 Friendly Fire -686 Cogmind --------- Core Integrity 0/250 Matter 146/300 Energy 100/100 System Corruption 0% Temperature Cool (81) Movement Treading (170) Location -7/Scraptown Parts ------- > --- POWER (1) -------- (None) > --- PROPULSION (2) --- Armored Treads Armored Treads > --- UTILITY (2) ------ Large Storage Unit > --- WEAPON (2) ------- Heavy Missile Launcher > --- INVENTORY (15) --- Advanced Treads Authchip [Propulsion] Authchip [Propulsion] Authchip [Armor] Subdweller Machine Gun Barrage Gun Flak Gun Datajack LU-1G1's Laser Shovel Peak State ------------ > --- POWER ------------ Improved Deuterium Engine > --- PROPULSION ------- Armored Treads Armored Treads > --- UTILITY ---------- Large Storage Unit Hardened Medium Armor Plating > --- WEAPON ----------- LU-1G1's Laser Shovel Makeshift Sword > --- INVENTORY -------- Advanced Treads Authchip [Propulsion] Authchip [Propulsion] Authchip [Armor] Subdweller Machine Gun Barrage Gun Flak Gun Subdweller Shrapnel Launcher Heavy Missile Launcher Datajack Katana Botcube [Rating: 28] Favorites ----------- Power Improved Deuterium Engine Engine Improved Deuterium Engine Propulsion Light Treads Treads Light Treads Wheel Subdweller Monowheel Utility Large Storage Unit Device Tractor Beam Storage Large Storage Unit Protection Hardened Medium Armor Plating Weapon Mace Energy Gun Small Laser Ballistic Gun Light Assault Rifle Launcher Heavy Missile Launcher Special Weapon LU-1G1's Laser Shovel Impact Weapon Mace Slashing Weapon Makeshift Sword Special Melee Weapon Datajack Build | -11 -10 -10 -10 -7 -7 ------- Run | Yrd Mat Min Sub Rec Scr Slots Evolved . | . . . . . . Power . | . . . . . . Propulsion . | . . . . . . Utility . | . . . . . . Weapon . | . . . . . . Parts Attached 46 | 6 2 2 11 9 16 Power 5 | 1 . . 2 2 . Engine 5 | 1 . . 2 2 . Core . | . . . . . . Reactor . | . . . . . . Propulsion 6 | 2 . . 1 1 2 Treads 5 | 2 . . . 1 2 Leg . | . . . . . . Wheel 1 | . . . 1 . . Hover . | . . . . . . Flight . | . . . . . . Utility 7 | 1 1 . 2 3 . Device 1 | . . . . 1 . Storage 2 | 1 . . . 1 . Processor . | . . . . . . Hackware . | . . . . . . Protection 4 | . 1 . 2 1 . Artifact . | . . . . . . Weapon 28 | 2 1 2 6 3 14 Energy Gun 2 | 1 . 1 . . . Energy Cannon . | . . . . . . Ballistic Gun 5 | 1 . . . . 4 Ballistic Cannon . | . . . . . . Launcher 8 | . 1 . 2 1 4 Special Weapon 2 | . . . . . 2 Impact Weapon 6 | . . 1 2 2 1 Slashing Weapon 4 | . . . 2 . 2 Piercing Weapon . | . . . . . . Special Melee Weapon 1 | . . . . . 1 Unidentified Prototypes 1 | . . . . . 1 Corrupted Parts 1 | . . . . . 1 System Corruption 5 | . . . . . 5 Parts Lost 5 | . . . 2 . 3 Power 1 | . . . . . 1 Propulsion 1 | . . . 1 . . Utility 2 | . . . 1 . 1 Weapon 1 | . . . . . 1 Highest Loss Streak 3 | . . . 2 . 3 To Critical Strikes . | . . . . . . Average Slot Usage (%) 94 | . 91 100 80 94 99 Engine 13 | . 14 14 13 14 14 Treads 25 | . 28 28 22 20 28 Wheel 1 | . . . 2 7 . Storage 10 | . 14 14 . 13 14 Protection 12 | . 6 14 11 4 13 Launcher 6 | . 7 4 . . 11 Impact Weapon 13 | . . 12 19 9 12 Slashing Weapon 5 | . . . 7 14 3 Peak Build Rating 28 | 6 8 9 16 20 28 Average Rating 18 | 4 6 8 12 17 22 On Entrance 9 | . 6 8 9 15 20 Naked Turns . | . . . . . . Heaviest Build 50 | 12 15 16 33 42 50 Greatest Support 40 | 40 40 40 40 40 40 Greatest Overweight (x) 1 | . . . 1 1 1 Average Overweight (x) . | . . . . . 1 Largest Inventory Capacity 15 | 8 8 8 8 15 15 Average Capacity 11 | 6 8 8 5 14 15 Most Carried 15 | 2 8 8 8 15 15 Average Carried 10 | 1 5 8 5 13 13 Final Capacity 15 | 8 8 8 5 15 15 Final Carried 15 | 2 8 8 5 15 9 Class Distribution -------------------- 61% | Commander-Mutant 33% | Mutant 5% | Subdweller-Mutant Dominant Class ---------------- Mutant | -10/Materials Mutant | -10/Mines Mutant | -10/Subcaves Commander-Mutant | -7/Recycling Commander-Mutant | -7/Scraptown Resources | -11 -10 -10 -10 -7 -7 ----------- Run | Yrd Mat Min Sub Rec Scr Matter Collected 854 | 103 . 267 150 130 204 Remotely 50 | . . . . 50 . Salvage Created 1848 | . 11 167 320 506 844 Parts 80 | . 5 18 11 10 36 Haulers Intercepted . | . . . . . . Recyclers Shooed . | . . . . . . Parts Field Recycled . | . . . . . . Retrieved Matter . | . . . . . . Parts Self-Destructed 3 | . . . 3 . . Prevented . | . . . . . . Kills | -11 -10 -10 -10 -7 -7 ------- Run | Yrd Mat Min Sub Rec Scr Combat Hostiles Destroyed 28 | . 3 2 7 2 14 Melee 3 | . . . 2 1 . Guns 1 | . . . . . 1 AOE 21 | . 3 2 2 1 13 Classes Destroyed 15 | . 1 4 3 1 6 Worker 1 | . . 1 . . . Builder 2 | . . 2 . . . Tunneler 1 | . . 1 . . . Recycler 5 | . . . . 5 . Swarmer 3 | . 3 . . . . Grunt 3 | . . 2 1 . . Brawler 1 | . . . . . 1 Protector 1 | . . . . . 1 Sentry 4 | . . . 1 2 1 Artisan 1 | . . . 1 . . Subdweller 5 | . . . 5 . . Bolteater 2 | . . . . . 2 Scrapper 2 | . . . . . 2 Elite 10 | . . . . . 10 Zionite 1 | . . . . . 1 Thug 1 | . . 1 . . . Best Kill Streak 13 | . 3 4 2 5 13 Combat Bots Only 12 | . 3 2 2 2 12 Max Kills in Single Turn 4 | . 2 2 1 1 4 Gunslinging . | . . . . . . Exploded 2 | . 2 1 1 1 2 Melee 1 | . . . 1 1 . Uniques/NPCs Destroyed . | . . . . . . Combat | -11 -10 -10 -10 -7 -7 -------- Run | Yrd Mat Min Sub Rec Scr Hostile Shots Fired 129 | . 9 3 26 54 37 Missed 44 | . 4 1 5 23 11 Damage Taken 1645 | . 105 21 463 214 842 Core 270 | . 18 11 . 34 207 Absorbed by Shields 17 | . . . . 17 . Regen/Repaired (Parts) 533 | . . . . . 533 Core Remaining (%) 100 | 100 . . . . . Volleys Fired 45 | . 3 23 2 2 15 Largest 1 | . 1 1 1 1 1 Hottest 60 | . 30 40 40 40 60 Shots Fired 44 | . 3 23 2 2 14 Gun 20 | . . 19 . . 1 Cannon . | . . . . . . Launcher 22 | . 3 4 2 2 11 Special 2 | . . . . . 2 Kinetic 14 | . . . 2 2 10 Thermal 21 | . . 19 . . 2 Explosive 9 | . 3 4 . . 2 Electromagnetic . | . . . . . . Robot Hit Streak 6 | . 1 6 1 . 5 Robot Miss Streak 2 | . 1 2 . . 1 Penetration Max . | . . . . . . Secondary Targets . | . . . . . . Shots Hit Robots 60 | . 1 14 18 17 10 Core Hits 59 | . 3 13 4 10 29 Critical Kills . | . . . . . . Critical Parts Destroyed 5 | . . . 3 2 . Critical Strikes 6 | . . . 3 3 . Smash 5 | . . . 3 2 . Sever 1 | . . . . 1 . Melee Attacks 148 | . . 2 115 24 7 Impact 103 | . . 2 87 14 . Slashing 44 | . . . 28 10 6 Piercing . | . . . . . . Sneak Attacks 11 | . . . 2 8 1 Combat Hostiles 1 | . . . . 1 . Follow-up Attacks 4 | . . . 2 2 . Damage Inflicted 4264 | . 239 362 690 1006 1967 Guns 156 | . . 145 . . 11 Cannons . | . . . . . . Explosions 2688 | . 239 217 109 167 1956 Melee 1420 | . . . 581 839 . Ramming . | . . . . . . Kinetic 1920 | . . . 109 167 1644 Thermal 227 | . 82 145 . . . Explosive 697 | . 157 217 . . 323 Electromagnetic . | . . . . . . Impact 985 | . . . 543 442 . Slashing 435 | . . . 38 397 . Piercing . | . . . . . . Highest Corruption 5 | . . . . 1 5 Average Corruption 1 | . . . . 1 5 Corruption Purged . | . . . . . . Corruption Blocked . | . . . . . . Effects 2 | . . . . 2 . Message Errors 2 | . . . . 2 . Overload Shots . | . . . . . . Overflow Damage 396 | . 4 . 158 177 57 Projectiles . | . . . . . . Explosions 61 | . 4 . . . 57 Melee 335 | . . . 158 177 . Knockbacks 6 | . . . 6 . . Impact 6 | . . . 6 . . Kinetic . | . . . . . . Secondary . | . . . . . . Self-Inflicted Damage 257 | . 66 . 14 . 177 Shots 9 | . 2 . 1 . 6 Rammed . | . . . . . . Targets Rammed . | . . . . . . Kicked . | . . . . . . Crushed . | . . . . . . Highest Temperature 84 | . . 20 . 14 84 Average Temperature 17 | . . 7 . 12 25 Received Heat Transfer 368 | . . 12 96 54 206 Siege Activations . | . . . . . . Robots Corrupted 5 | . . . 4 1 . Combat Hostiles 3 | . . . 3 . . Parts Fried 7 | . . . 4 3 . Impact Corruptions 12 | . . . 7 5 . Robots Melted . | . . . . . . Combat Hostiles . | . . . . . . Parts Melted 1 | . . . . . 1 Heat Transferred 375 | . 50 325 . . . Parts Sabotaged . | . . . . . . Parts Stolen . | . . . . . . Parts Stripped . | . . . . . . Power Chain Reactions . | . . . . . . Alert | -11 -10 -10 -10 -7 -7 ------- Run | Yrd Mat Min Sub Rec Scr Peak Influence 150 | . 138 140 . 150 . Initial 53 | . . 53 . . . Average 65 | . 70 75 . 63 . Maximum Alert Level . | . . . . . . Low Security (%) 100 | 100 100 100 . 100 . Level 1 . | . . . . . . Level 2 . | . . . . . . Level 3 . | . . . . . . Level 4 . | . . . . . . Level 5 . | . . . . . . High Security . | . . . . . . Max Security . | . . . . . . Squads Dispatched . | . . . . . . Investigation . | . . . . . . Extermination . | . . . . . . Reinforcement . | . . . . . . Assault . | . . . . . . Garrison . | . . . . . . Intercept . | . . . . . . Searches Triggered . | . . . . . . Construction Impeded . | . . . . . . Haulers Reinforced . | . . . . . . Active Scanning Responses . | . . . . . . Cargo Convoy Interrupts . | . . . . . . Stealth | -11 -10 -10 -10 -7 -7 --------- Run | Yrd Mat Min Sub Rec Scr Distress Signals . | . . . . . . Communications Jammed . | . . . . . . Distress Signals . | . . . . . . Times Spotted 43 | . 4 2 12 3 22 Peak Tracking Total 8 | . 3 2 5 2 8 Tactical Retreats . | . . . . . . Traps | -11 -10 -10 -10 -7 -7 ------- Run | Yrd Mat Min Sub Rec Scr Traps Triggered . | . . . . . . Indirectly . | . . . . . . Trap Hack Attempts . | . . . . . . Triggered . | . . . . . . Disarmed . | . . . . . . Reprogrammed . | . . . . . . Reused . | . . . . . . Traps Extracted . | . . . . . . Installed . | . . . . . . Triggered . | . . . . . . Machines | -11 -10 -10 -10 -7 -7 ---------- Run | Yrd Mat Min Sub Rec Scr Machines Disabled 8 | . 2 . . 2 4 Max in Single Turn 3 | . 1 . . 2 3 Machines Repaired . | . . . . . . Machines Dismantled . | . . . . . . Machines Sabotaged . | . . . . . . Overloaded Fab Kills . | . . . . . . Hacking | -11 -10 -10 -10 -7 -7 --------- Run | Yrd Mat Min Sub Rec Scr Machines Accessed 16 | . 2 . 2 7 5 Terminals 6 | . 2 . . 4 . Fabricators . | . . . . . . Repair Stations . | . . . . . . Recycling Units 3 | . . . . 3 . Scanalyzers . | . . . . . . Garrison Access . | . . . . . . Total Hacks 63 | . 6 . 3 24 30 Successful 46 | . 4 . 3 9 30 Failed 17 | . 2 . . 15 . Catastrophic 3 | . 1 . . 2 . Database Lockouts . | . . . . . . Manual 20 | . 5 . . 15 . Terminals 24 | . 6 . . 18 . Fabricators . | . . . . . . Repair Stations . | . . . . . . Recycling Units 6 | . . . . 6 . Scanalyzers . | . . . . . . Garrison Access . | . . . . . . Terminal Hacks 41 | . 4 . 3 4 30 Record 31 | . . . 1 . 30 Robot Analysis 5 | . 2 . . 3 . Open Door 1 | . . . 1 . . Terminal Index 1 | . . . . 1 . Hauler Manifests 1 | . 1 . . . . Zone Layout 1 | . 1 . . . . Release Object 1 | . . . 1 . . Fabricator Hacks . | . . . . . . Repair Station Hacks . | . . . . . . Recycling Unit Hacks 2 | . . . . 2 . Retrieve Components 2 | . . . . 2 . Scanalyzer . | . . . . . . Garrison Access Hacks . | . . . . . . Unauthorized Hacks 3 | . . . . 3 . Terminals . | . . . . . . Fabricators . | . . . . . . Repair Stations . | . . . . . . Recycling Units 3 | . . . . 3 . Tunnel 3 | . . . . 3 . Scanalyzers . | . . . . . . Garrison Access . | . . . . . . Data Cores Recovered . | . . . . . . Used . | . . . . . . Hacking Detections 7 | . 2 . . 5 . Full Trace Events 2 | . . . . 2 . Feedback Events 1 | . . . . 1 . Corruption 1 | . . . . 1 . Feedback Blocked . | . . . . . . Robot Schematics Acquired . | . . . . . . Robots Built . | . . . . . . Authchips . | . . . . . . Time . | . . . . . . Total Robot Build Rating . | . . . . . . Part Schematics Acquired . | . . . . . . Parts Built . | . . . . . . Authchips . | . . . . . . Time . | . . . . . . Total Part Build Rating . | . . . . . . Parts Repaired . | . . . . . . Time . | . . . . . . Parts Recycled . | . . . . . . Recycled Matter . | . . . . . . Retrieved Matter . | . . . . . . Retrieved Components 10 | . . . . 10 . Parts Scanalyzed . | . . . . . . Part Schematics Acquired . | . . . . . . Parts Damaged . | . . . . . . Bothacking | -11 -10 -10 -10 -7 -7 ------------ Run | Yrd Mat Min Sub Rec Scr Used RIF Installer . | . . . . . . Robots Hacked 1 | . . . . . 1 Non-combat . | . . . . . . Combat 1 | . . . . . 1 Robot Hacks Applied 1 | . . . . . 1 parse_system 1 | . . . . . 1 Relay Couplers Released . | . . . . . . Fabnet Peak Effective % . | . . . . . . Robots Rewired 10 | . . . . 10 . Allies Hacked . | . . . . . . Hacks Repelled . | . . . . . . Allies | -11 -10 -10 -10 -7 -7 -------- Run | Yrd Mat Min Sub Rec Scr Total Allies 13 | . . 3 . 10 . Largest Group 10 | . . 3 3 10 10 Highest-Rated Group 235 | . . 40 40 235 235 Highest-Rated Ally 40 | . . 16 16 40 40 Total Orders 6 | . . . . . 6 STAY 2 | . . . . . 2 FOLLOW 4 | . . . . . 4 Ally Attacks 68 | . . . 13 7 48 Total Damage 1189 | . . . 167 135 887 Kills 8 | . . . 1 1 6 Allies Corrupted . | . . . . . . Allies Melted . | . . . . . . Intel | -11 -10 -10 -10 -7 -7 ------- Run | Yrd Mat Min Sub Rec Scr Robot Analysis Total 5 | . 2 . . 3 . Derelict Logs Recovered 7 | . . . 3 . 4 Drone Launches . | . . . . . . Drone Recoveries . | . . . . . . Exploration | -11 -10 -10 -10 -7 -7 ------------- Run | Yrd Mat Min Sub Rec Scr Turns Passed 11540 | 80 243 631 3099 1034 6453 Spaces Moved 5180 | 46 143 353 1766 496 2376 Core 3 | 3 . . . . . Treads 4410 | 43 143 353 1284 211 2376 Legs . | . . . . . . Wheels 767 | . . . 482 285 . Hover . | . . . . . . Flight . | . . . . . . Fastest Speed 50 | 50 160 160 120 120 240 Average Speed 195 | 152 160 160 149 158 246 Slowest Speed 250 | 160 160 160 240 240 250 Overloaded Moves . | . . . . . . Propulsion Burnouts . | . . . . . . Robots Hopped . | . . . . . . Cave-ins Triggered . | . . . . . . Exploration Rate (%) 54 | 3 30 58 54 88 95 Regions Visited 5 Branch Regions 4 Pre-discovered Areas 7 | . . . 2 3 2 Known Exits Taken . | . . . . . . Unknown Exits Taken 5 | 1 1 1 1 1 . Scrap Searched 11 | . . . 8 . 3 Spaces Dug 114 | . . 16 20 20 58 Terrain Destroyed 256 | . 34 27 33 28 134 Melee 15 | . . 1 11 2 1 Projectile . | . . . . . . AOE 221 | . 34 26 22 26 113 Terrain Rammed . | . . . . . . Walls Destroyed . | . . . . . . Machines Disabled . | . . . . . . Actions | -11 -10 -10 -10 -7 -7 --------- Run | Yrd Mat Min Sub Rec Scr Total 6346 | 53 153 392 2080 710 2958 Wait 737 | . . 13 180 37 507 Move 5175 | 45 142 352 1765 495 2376 Hop . | . . . . . . Pick Up 41 | 2 6 . 11 8 14 Fast Attach 18 | 6 1 . 6 3 2 Attach 2 | . . . . 2 . Detach 5 | . . . . 3 2 Swap 26 | . 1 2 5 4 14 Drop 39 | . . . 16 2 21 Fire 45 | . 3 23 2 2 15 Melee 117 | . . 2 89 19 7 Ram . | . . . . . . Kick . | . . . . . . Crush . | . . . . . . Escape Stasis . | . . . . . . Rewire 135 | . . . . 135 . Trap . | . . . . . . Miscellaneous 6 | . . . 6 . . Route ------- -11/Scrapyard -10/Materials -10/Mines (discovered 2 exits: [*Mat] / *Sub) -10/Subcaves (discovered 3 exits: [*Mat x2] / *Rec) -7/Recycling (discovered 2 exits: [*Fac] / *Scr) -7/Scraptown (discovered 2 exits: [*Fac x2]) History --------- Turn | Location | Event 2 | -11/Scrapyard | Discovered new exit (range 16) 81 | -11/Scrapyard | Entered Materials 243 | -10/Materials | Discovered new exit (range 16) 316 | -10/Materials | Build established: Mutant 324 | -10/Materials | Entered Mines 361 | -10/Mines | Discovered new exit (range 6) 384 | -10/Mines | Met a Derelict bent on vengeance 819 | -10/Mines | Assisted by bots powering up and referring to "LRC-V3" 883 | -10/Mines | Discovered new exit (range 7) 955 | -10/Mines | Entered Subcaves 955 | -10/Subcaves | Accompanied by 3 allies 982 | -10/Subcaves | Discovered new exit (range 9) 1179 | -10/Subcaves | Learned Materials stockpile data 1216 | -10/Subcaves | Lost 3 allies 1500 | -10/Subcaves | Released subatomizers from SUBCON Basin 1569 | -10/Subcaves | A swath of the cavern ceiling suddenly collapsed 1652 | -10/Subcaves | Curiously followed by a Cobbler waking with a query about "LVR3C" 2206 | -10/Subcaves | Disturbed a concealed Subdweller 2318 | -10/Subcaves | A swath of the cavern ceiling suddenly collapsed 2395 | -10/Subcaves | Shifting Twisted Machinery released Sub. Laser 2406 | -10/Subcaves | Shifting Twisted Machinery released Sub. Monowheel 2658 | -10/Subcaves | Learned location of Zion (-7) 2714 | -10/Subcaves | Met a Zionite searching for "candidates" 2796 | -10/Subcaves | Discovered new exit (range 10) 3702 | -10/Subcaves | Build established: Subdweller-Mutant 4051 | -10/Subcaves | Discovered new exit (range 3) 4054 | -10/Subcaves | Entered Recycling 4437 | -7/Recycling | Discovered new exit (range 12) 4609 | -7/Recycling | Build established: Commander-Mutant 5008 | -7/Recycling | Scanned before Scraplab entrance 5051 | -7/Recycling | Entered Scraplab 5071 | -7/Recycling | Discovered new exit (range 2) 5088 | -7/Recycling | Entered Scraptown 5088 | -7/Scraptown | Accompanied by 10 allies 5088 | -7/Scraptown | System corruption cleaned by C-Scrubber 5095 | -7/Scraptown | System corruption cleaned by C-Scrubber 5214 | -7/Scraptown | Visited Cave Peace 5862 | -7/Scraptown | Scanned Subdweller tech in exchange for log data 5867 | -7/Scraptown | Learned location of Armory (-4) 5871 | -7/Scraptown | Learned location of 1 exit from Proximity Caves 5874 | -7/Scraptown | Learned Factory terminal intel 5907 | -7/Scraptown | Discovered new exit (range 7) 6119 | -7/Scraptown | Visited CR-KLE's Repair Center 6138 | -7/Scraptown | CR-KLE repaired 7 parts 6224 | -7/Scraptown | Visited Awakened 6348 | -7/Scraptown | Visited CPS Storage 6416 | -7/Scraptown | Heard Great Nut preacher, LISTEN AND RECITE! 6434 | -7/Scraptown | Visited UFD Registry 6468 | -7/Scraptown | Visited Shadow of the Wyrm 6557 | -7/Scraptown | Visited TADAMA 7486 | -7/Scraptown | Visited Red Mages 7641 | -7/Scraptown | Registered with UFD as "Cryoranger" 7788 | -7/Scraptown | Visited Botcube Research 7849 | -7/Scraptown | Visited Junk Repository 7932 | -7/Scraptown | Visited DA-N13 Charitable Foundation 7942 | -7/Scraptown | Found DCF Scrap (30 items) 8158 | -7/Scraptown | Visited Scrap Suit Storage 8312 | -7/Scraptown | Found Botcube 8737 | -7/Scraptown | Discovered new exit (range 3) 8834 | -7/Scraptown | Found Scrap Suit 9076 | -7/Scraptown | Visited Derelict Rescue Squad 9179 | -7/Scraptown | Visited LU-1G1's Boring Crew 9418 | -7/Scraptown | Visited Curators Association 9516 | -7/Scraptown | Visited Infowarlord's Domain 9673 | -7/Scraptown | Delivered Scrap Shield to a Scientist 11321 | -7/Scraptown | Attacked by Scraptown defenders 11340 | -7/Scraptown | Found Prototype Special Weapon 11340 | -7/Scraptown | Identified LU-1G1's Laser Shovel 11396 | -7/Scraptown | Core integrity fell below 50% 11418 | -7/Scraptown | Lost 10 allies 11437 | -7/Scraptown | Destroyed 12 combat bots 11538 | -7/Scraptown | Core integrity fell below 20% 11541 | -7/Scraptown | Destroyed by YM-AJ3(j) with Overtuned Pulse Rifle Last Messages --------------- 11528_ ANNOUNCEMENT: HQ reinforcements inbound. Hold tight! 11528_ LU-1G1's Laser Shovel disintegrates Earth. 11533_ IJ-Y88(j) heat short circuits Lgt. Deuterium Engine. 11533_ LU-1G1's Laser Shovel disintegrates Earth. 11535_ Critical hit (Burn: +50). 11536_ Hrd. Medium Armor Plating destroyed. 11537_ IJ-Y88(j) heat short circuits Scrap Suit. 11537_ IJ-Y88(j) destroyed. 11540_ Destroyed Lgt. Deuterium Engine. 11540_ Mak. Salvage Targeting Computer melted. 11540_ 2K-BYU(j) destroyed. 11540_ Broken Sub. Shrapnel Launcher destroyed. 11540_ Destroyed Broken Sub. Shrapnel Launcher. 11540_ Imp. Deuterium Engine destroyed. 11540_ Destroyed Imp. Deuterium Engine. 11541_ Critical hit (Burn: +50). Map ----- +----------------------------------------------------+ | | | | | ?????????????????????????????????????????????????? | | ?????????????????????????????????????????????????? | | ?????????????????????????????????????????????????? | | ####?????????????????????????????????????????????? | | """#?????????????????????????????????????????????? | | "#?????????????????????????????????????????????? | | "#?????????????????????????????????????????????? | | "#?????????????????????????????????????????????? | | "#?????????????????????????????????????????????? | | "#?????????????????????????????????????????????? | | """#?????????????????????????????????????????????? | | #?????????????????????????????????????????????? | | #?????????????????????????????????????????????? | | #???????????????????????##??###############???# | | ####???????????????????????"""?#"""##""|##"""#??## | | ??????????????????????????#"" ##"" ##"" ##!!"#### | | ??????????????????????????#"" | | ??????????????????????????# | | ???????????????????????##?##################"""## | | ??????????????????????## # #???????????## #### | | ?????????????????????## #??????###### ###?## | | ??????????????????#### = #??????# %## ##?### | | ???????????????""""""" !% ######## ##?## | | ######???????" &" @j /# ##??# | | """"#???????" & " j # ####### ##???# | | | | #???????"" """""" ###?????##"#####" [ | | """"#???????##"###### # #########??# ##** * | | || #???????"" """"#####==#![!# #??# !=##[ * | | """"#??????#"" """#???#![# !# !#??#!%/ =|%* = | | | | #??????# " ""#???# # # #??# [ * [" | | """"#??????#" """#???# #??# * ![/" | | || #??????#" #???# #??# ==!!=# | | #??????######## ##???###### ####??#####=##"# | | ### ####???????##### ########### ###########*###" | | #???????#"""" """"""""""" """"""""""" """ | | #???????#" ! | | #???????#" ]=! | | #???????#" =[* | | #???????#" !! | | #????####" | | #????"""" """""""""""""""""""""""""""" | | #???#"""" """""""""""""""""""""""""""" | | #???#"""" ""###### ################"" | | #???#"""" ""# ##????????#"" | | #???#"""" ""# X"#????????#"" | | ###?#"""" ""# "" "" ##????????#"" | | ""#"#"""" ""# "" "" X"#??????###"" | | """"#"""" ""# " " ######### #"" | +----------------------------------------------------+ Best States ------------- Heat Dissipation 25 Energy Generation 16 Energy Capacity 290 Matter Stores 300 Matter Capacity 300 Sight Range 16 Terrain Scan Density 10 Armor Coverage 800 Evasion (%) 40 Recoil Reduction 2 Authchip Count 3 Item Schematics ----------------- None Robot Schematics ------------------ None Fabricated ------------ Nothing Alien Tech Used ----------------- None Achievements -------------- None Challenges ------------ None Game ------ Seed SingularityCloakingNanovents Manual? 0 Play Time 01:18:59 Cumulative 232.0 hours Start 2024.08.06 @ 19:13:20 End 2024.08.07 @ 17:34:48 Sessions 7 Manual Loads 0 Difficulty Rogue Special Mode None Game No. 115 Rogue 115 Adventurer 0 Explorer 0 Win Type - Total 8 Types 4/1/3/0/0/0/0/0/0 Lore% 60 Gallery% 82 Achievement% 68 Wizard Run 0 Options --------- Layout 1 ASCII 0 Keyboard 0 Movement Mouse Keybinds 0 Fullscreen 1 Font 16/SmallcapsGlow Map View 55x38 Zoom Use 0% Tactical HUD 1 Map Filters NONE Filters NONE Steam 1 RUN: fb028924-fbb9-4a4c-94bf-9ddad7fdbfa7